bitfinex-derivatives/quotes_ETHF0:USTF0_20230105
["timestamp","ask_amount","ask_price","bid_price","bid_amount"]
[1672921826274,3.2078,1252.4,1252.3,2.9937931]
[1672921828594,7.87004908,1252.5,1252.3,2.9937931]
[1672921828805,3.2078,1252.4,1252.3,2.9937931]
[1672921829960,7.87004908,1252.5,1252.3,2.9937931]
[1672921830171,3.2078,1252.4,1252.3,2.9937931]
[1672921831426,7.87004908,1252.5,1252.3,2.9937931]
[1672921832166,3.2078,1252.4,1252.3,2.9937931]
[1672921834696,7.87004908,1252.5,1252.3,2.9937931]
[1672921835008,3.2078,1252.4,1252.3,2.9937931]
[1672921835531,3.2078,1252.4,1252.3,1.79627586]
[1672921835946,3.2078,1252.4,1252.3,4.19154626]
[1672921836998,3.2078,1252.4,1252.3,1.79645948]
[1672921838694,2.5,1252.5,1252.3,1.79645948]
[1672921838898,3.2078,1252.4,1252.3,1.79645948]
[1672921845519,2.5,1252.5,1252.3,1.79645948]
[1672921845729,2.5,1252.5,1252.4,1.19734718]
[1672921845934,5.7078,1252.5,1252.4,1.19734718]
[1672921848470,5.7078,1252.5,1252.4,2.99380666]
[1672921849738,2.5,1252.5,1252.4,2.99380666]
[1672921849941,5.7078,1252.5,1252.4,2.99380666]
[1672921850151,5.7078,1252.5,1252.4,1.19734718]
[1672921853312,2.5,1252.5,1252.4,1.19734718]
[1672921853520,5.7078,1252.5,1252.4,1.19734718]
[1672921861408,2.5,1252.5,1252.4,1.19734718]
[1672921861820,5.7078,1252.5,1252.4,1.19734718]
[1672921863299,2.5,1252.5,1252.4,1.19734718]
[1672921863510,5.7078,1252.5,1252.4,1.19734718]
[1672921863924,5.7078,1252.5,1252.4,1.18966441]
[1672921865607,2.5,1252.5,1252.4,1.18966441]
[1672921865820,5.7078,1252.5,1252.4,1.18966441]
[1672921866239,2.5,1252.5,1252.4,1.18966441]
[1672921866555,5.7078,1252.5,1252.4,1.18966441]
[1672921868447,5.7078,1252.5,1252.4,2.98612389]
[1672921870023,2.5,1252.5,1252.4,2.98612389]
[1672921870233,5.7078,1252.5,1252.4,2.98612389]
[1672921871705,2.5,1252.5,1252.4,2.98612389]
[1672921871922,5.7078,1252.5,1252.4,2.98612389]
[1672921874963,2.5,1252.5,1252.4,2.98612389]
[1672921875179,5.7078,1252.5,1252.4,2.98612389]
[1672921876335,5.7078,1252.5,1252.4,1.79645948]
[1672921876967,2.5,1252.5,1252.4,1.79645948]
[1672921877182,5.7078,1252.5,1252.4,1.79645948]
[1672921877911,2.5,1252.5,1252.4,1.79645948]
[1672921878225,5.7078,1252.5,1252.4,1.79645948]
[1672921879691,2.5,1252.5,1252.4,1.79645948]
[1672921879903,5.7078,1252.5,1252.4,1.79645948]
[1672921881590,2.5,1252.5,1252.4,1.79645948]
[1672921881910,5.7078,1252.5,1252.4,1.79645948]
[1672921883903,2.5,1252.5,1252.4,1.79645948]
[1672921884116,5.7078,1252.5,1252.4,1.79645948]
[1672921884740,2.5,1252.5,1252.4,1.79645948]
[1672921885063,5.7078,1252.5,1252.4,1.79645948]
[1672921888000,5.7078,1252.5,1252.3,1.79645948]
[1672921888322,9.89644908,1252.5,1252.3,1.79645948]
[1672921890421,5.7078,1252.5,1252.3,1.79645948]
[1672921890638,9.89644908,1252.5,1252.3,1.79645948]
[1672921892212,9.89644908,1252.5,1252.2,4.19154626]
[1672921892423,6.68864908,1252.5,1252.3,1.79645948]
[1672921892734,3.2078,1252.4,1252.3,1.79645948]
[1672921895891,2.5,1252.5,1252.3,1.79645948]
[1672921896093,3.2078,1252.4,1252.3,1.79645948]
[1672921897251,2.5,1252.5,1252.3,1.79645948]
[1672921897464,3.2078,1252.4,1252.3,1.79645948]
[1672921898306,2.5,1252.5,1252.3,1.79645948]
[1672921898511,3.2078,1252.4,1252.3,1.79645948]
[1672921898829,3.2078,1252.4,1252.3,4.89508678]
[1672921899448,3.2078,1252.4,1252.3,6.31046575]
[1672921901036,5.7078,1252.5,1252.3,6.31046575]
[1672921901246,2.5,1252.5,1252.4,1.79547483]
[1672921901458,5.7078,1252.5,1252.4,3.79547483]
[1672921901666,5.7078,1252.5,1252.4,1.79547483]
[1672921902507,2.5,1252.5,1252.4,1.79547483]
[1672921902722,5.7078,1252.5,1252.4,1.79547483]
[1672921904087,2.5,1252.5,1252.4,1.79547483]
[1672921904297,5.7078,1252.5,1252.4,1.79547483]
[1672921906192,2.5,1252.5,1252.4,1.79547483]
[1672921906398,5.7078,1252.5,1252.4,1.79547483]
[1672921906813,2.5,1252.5,1252.4,1.79547483]
[1672921907027,5.7078,1252.5,1252.4,1.79547483]
[1672921907765,2.5,1252.5,1252.4,1.79547483]
[1672921908288,5.7078,1252.5,1252.4,1.79547483]
[1672921908500,2.5,1252.5,1252.4,1.79547483]
[1672921908710,5.7078,1252.5,1252.4,1.79547483]
[1672921909551,2.5,1252.5,1252.4,1.79547483]
[1672921909871,5.7078,1252.5,1252.4,1.79547483]
[1672921910708,2.5,1252.4,1252.3,1.17867709]
[1672921910920,2.5,1252.4,1252.3,1.41537141]
[1672921911129,2.5,1252.4,1252.3,3.91537141]
[1672921911878,5.7078,1252.5,1252.3,3.91537141]
[1672921912078,5.7078,1252.5,1252.3,2.5]
[1672921913439,15.958,1252.6,1252.3,6.90896439]
[1672921913649,15.958,1252.6,1252.3,5.49366754]
[1672921914804,19.1658,1252.6,1252.3,5.49366754]
[1672921915534,19.1658,1252.6,1252.3,2.5]
[1672921915958,15.958,1252.6,1252.3,2.5]
[1672921916167,19.1658,1252.6,1252.3,5.49366754]
[1672921916598,17.1658,1252.6,1252.3,13.47466754]
[1672921916805,17.1658,1252.6,1252.4,1.41522293]
[1672921917015,3.2078,1252.6,1252.4,1.41522293]
[1672921919016,2.5,1252.7,1252.4,1.41522293]
[1672921919230,5.7078,1252.7,1252.4,1.41522293]
[1672921919536,5.7078,1252.7,1252.3,13.47466754]
[1672921919752,5.7078,1252.7,1252.3,16.68246754]
[1672921920378,5.7078,1252.7,1252.4,1.41521067]
[1672921921331,2.5,1252.7,1252.4,1.41521067]
[1672921921533,2.5,1252.7,1252.3,16.68246754]
[1672921921534,5.7078,1252.7,1252.3,16.68246754]
[1672921925530,2.5,1252.7,1252.3,13.47466754]
[1672921925848,5.7078,1252.7,1252.3,16.68246754]
[1672921926059,2.5,1252.7,1252.3,13.47466754]
[1672921926265,3.2078,1252.7,1252.3,16.68246754]
[1672921926479,3.2078,1252.7,1252.4,4.40885175]
[1672921926685,3.2078,1252.7,1252.5,2.0]
[1672921927960,2.5,1252.8,1252.5,2.0]
[1672921928163,3.2078,1252.7,1252.5,2.0]
[1672921928375,2.5,1252.6,1252.5,2.0]
[1672921929424,2.5,1252.6,1252.3,16.68246754]
[1672921929742,2.5,1252.6,1252.4,1.41517511]
[1672921938361,2.5,1252.8,1252.4,1.41517511]
[1672921938574,2.5,1252.6,1252.4,1.41517511]
[1672921940682,2.5,1252.6,1252.4,11.78779263]
[1672921940888,2.5,1252.6,1252.5,2.0]
[1672921941098,3.2078,1252.7,1252.5,2.0]
[1672921942674,2.5,1252.8,1252.5,2.0]
[1672921943096,3.2078,1252.7,1252.5,2.0]
[1672921943304,2.5,1252.6,1252.5,4.39161752]
[1672921946777,5.7078,1252.8,1252.5,4.39161752]
[1672921948564,2.5,1252.8,1252.5,4.39161752]
[1672921948876,5.7078,1252.8,1252.5,4.39161752]
[1672921950973,2.5,1252.8,1252.5,4.39161752]
[1672921951193,5.7078,1252.8,1252.5,4.39161752]
[1672921951815,5.7078,1252.8,1252.5,12.37261752]
[1672921952978,2.5,1252.8,1252.5,12.37261752]
[1672921953292,5.7078,1252.8,1252.5,12.37261752]
[1672921955394,3.2078,1252.8,1252.6,10.37261752]
[1672921955605,5.7078,1252.8,1252.6,10.37261752]
[1672921956548,2.5,1252.8,1252.6,10.37261752]
[1672921958228,5.7078,1252.8,1252.6,10.37261752]
[1672921959499,2.5,1252.8,1252.6,10.37261752]
[1672921960008,17.1658,1252.9,1252.6,10.37261752]
[1672921960220,3.2078,1252.9,1252.6,10.37261752]
[1672921960434,5.7078,1252.9,1252.6,10.37261752]
[1672921960958,3.2078,1252.9,1252.6,10.37261752]
[1672921961275,3.2078,1252.9,1252.7,2.39161752]
[1672921961916,3.2078,1252.9,1252.7,11.78751207]
[1672921962114,3.2078,1252.9,1252.8,2.5]
[1672921965903,2.5,1253.0,1252.8,2.5]
[1672921966213,2.5,1253.0,1252.7,10.37261752]
[1672921966423,5.7078,1253.0,1252.8,2.5]
[1672921967366,3.2078,1253.0,1252.8,2.5]
[1672921967574,13.96,1253.1,1252.8,2.5]
[1672921968311,0.002,1253.1,1252.8,2.5]
[1672921970736,0.002,1253.1,1252.8,4.29075547]
[1672921970944,0.002,1253.1,1252.8,6.68237299]
[1672921971157,0.002,1253.1,1252.8,12.27175547]
[1672921972839,0.002,1253.1,1252.8,15.47955547]
[1672921973464,0.002,1253.1,1252.8,12.27175547]
[1672921973675,0.002,1253.1,1252.8,15.47955547]
[1672921973885,0.002,1253.1,1252.8,12.27175547]
[1672921974098,0.002,1253.1,1252.8,15.47955547]
[1672921974941,0.002,1253.1,1252.8,12.27175547]
[1672921976405,0.002,1253.1,1252.8,15.47955547]
[1672921977148,0.002,1253.1,1252.8,12.27175547]
[1672921978198,3.2098,1253.1,1252.8,12.27175547]
[1672921980295,0.002,1253.1,1252.8,12.27175547]
[1672921983772,0.002,1253.1,1252.8,14.66337299]
[1672921983979,0.002,1253.1,1252.9,1.19264263]
[1672921985555,0.002,1253.1,1253.0,2.5]
[1672921985763,0.002,1253.1,1253.0,10.481]
[1672921989866,0.002,1253.1,1253.0,11.66786117]
[1672921990183,0.002,1253.1,1253.0,10.47521854]
[1672921991342,0.002,1253.1,1253.0,11.66786117]
[1672921994600,0.002,1253.1,1253.0,13.45861664]
[1672921995231,0.002,1253.1,1253.0,12.26597401]
[1672921996495,0.002,1253.1,1253.0,13.45871693]
[1672921997225,0.002,1253.1,1253.0,12.26597401]
[1672921997641,0.002,1253.1,1253.0,15.47377401]
[1672921999231,0.002,1253.1,1253.0,12.26597401]
[1672921999444,0.002,1253.1,1253.0,17.86539153]
[1672922000390,0.002,1253.1,1253.0,19.27985442]
[1672922000599,0.002,1253.1,1253.0,17.48909861]
[1672922000916,0.002,1253.1,1253.0,16.07463606]
[1672922001228,0.002,1253.1,1253.0,17.48910931]
[1672922001752,0.002,1253.1,1253.0,14.28130931]
[1672922001966,0.002,1253.1,1253.0,17.48910931]
[1672922003118,0.002,1253.1,1253.0,14.28130931]
[1672922003317,0.002,1253.1,1253.0,17.48910931]
[1672922003532,0.002,1253.1,1253.0,14.28130931]
[1672922003953,0.002,1253.1,1253.0,17.48910931]
[1672922004486,0.002,1253.1,1253.0,17.48911544]
[1672922007220,0.002,1253.1,1253.0,20.48278298]
[1672922007844,0.002,1253.1,1253.0,17.27498298]
[1672922008368,0.002,1253.1,1253.0,14.28131544]
[1672922008578,0.002,1253.1,1253.0,17.48911544]
[1672922009003,0.002,1253.1,1253.0,20.48278298]
[1672922009630,13.958,1253.6,1253.2,7.981]
[1672922009846,2.5,1253.6,1253.3,1.1930985]
[1672922010049,2.5,1253.6,1253.4,2.5]
[1672922010259,2.5,1253.6,1253.4,10.481]
[1672922012369,2.5,1253.6,1253.2,6.19054625]
[1672922012370,3.2078,1253.5,1253.2,6.19054625]
[1672922012696,3.2078,1253.5,1253.4,2.5]
[1672922014263,2.5,1253.6,1253.4,2.5]
[1672922014479,5.7078,1253.6,1253.4,2.5]
[1672922015318,9.89644908,1253.6,1253.4,2.5]
[1672922016057,5.7078,1253.6,1253.4,2.5]
[1672922016263,2.5,1253.6,1253.4,2.5]
[1672922016474,5.7078,1253.6,1253.4,2.5]
[1672922018474,2.5,1253.6,1253.4,2.5]
[1672922018786,5.7078,1253.6,1253.4,2.5]
[1672922021415,2.5,1253.6,1253.4,2.5]
[1672922021835,5.7078,1253.6,1253.4,2.5]
[1672922023197,2.5,1253.6,1253.4,2.5]
[1672922023407,5.7078,1253.6,1253.4,2.5]
[1672922026358,9.89644908,1253.6,1253.4,2.5]
[1672922026991,5.7078,1253.6,1253.4,2.5]
[1672922027818,9.89644908,1253.6,1253.4,2.5]
[1672922028031,9.89644908,1253.6,1253.3,7.981]
[1672922028241,9.89644908,1253.6,1253.3,9.1740985]
[1672922030560,3.2078,1253.5,1253.3,9.1740985]
[1672922030776,2.5,1253.4,1253.3,9.1740985]
[1672922034044,3.2078,1253.5,1253.3,9.1740985]
[1672922036458,3.2078,1253.5,1253.3,1.1930985]
[1672922037192,3.2078,1253.5,1253.3,5.48274625]
[1672922037615,3.2078,1253.5,1253.3,13.46374625]
[1672922038449,6.68864908,1253.6,1253.4,1.1930985]
[1672922039820,2.5,1253.6,1253.4,1.1930985]
[1672922041726,5.7078,1253.6,1253.4,1.1930985]
[1672922044979,5.7078,1253.6,1253.4,2.98274625]
[1672922046553,2.5,1253.6,1253.4,2.98274625]
[1672922047286,9.89644908,1253.7,1253.4,1.1930985]
[1672922047492,9.89644908,1253.7,1253.4,2.98274625]
[1672922049079,9.89644908,1253.7,1253.5,1.1930985]
[1672922049712,6.68864908,1253.7,1253.5,1.1930985]
[1672922049912,9.89644908,1253.7,1253.4,2.98274625]
[1672922051389,9.89644908,1253.7,1253.4,10.96374625]
[1672922051912,6.68864908,1253.7,1253.4,10.96374625]
[1672922052231,9.89644908,1253.7,1253.4,10.96374625]
[1672922053912,9.89644908,1253.7,1253.4,14.17154625]
[1672922055379,9.89644908,1253.7,1253.4,10.96374625]
[1672922055600,9.89644908,1253.7,1253.4,14.17154625]
[1672922056863,6.68864908,1253.7,1253.4,10.96374625]
[1672922057287,9.89644908,1253.7,1253.4,14.17154625]
[1672922058237,6.68864908,1253.7,1253.4,10.96374625]
[1672922058644,9.89644908,1253.7,1253.4,14.17154625]
[1672922060119,6.68864908,1253.7,1253.4,10.96374625]
[1672922060326,9.89644908,1253.7,1253.4,14.17354625]
[1672922060538,9.89644908,1253.7,1253.5,1.1930985]
[1672922060539,5.7078,1253.7,1253.5,1.1930985]
[1672922061168,3.2078,1253.7,1253.5,1.1930985]
[1672922061370,0.002,1253.7,1253.5,1.1930985]
[1672922061585,0.002,1253.7,1253.6,2.5]
[1672922071370,0.002,1253.7,1253.6,3.6930985]
[1672922071796,0.002,1253.7,1253.6,2.5]
[1672922071996,0.002,1253.7,1253.6,3.6930985]
[1672922073892,0.002,1253.7,1253.6,2.5]
[1672922074103,0.002,1253.7,1253.6,3.6930985]
[1672922074840,0.002,1253.7,1253.6,2.5]
[1672922075048,0.002,1253.7,1253.6,3.6930985]
[1672922075673,3.2098,1253.7,1253.6,2.5]
[1672922075993,3.2098,1253.7,1253.5,3.6930985]
[1672922076416,3.2098,1253.7,1253.5,5.48274625]
[1672922076931,3.2098,1253.7,1253.5,2.98274625]
[1672922077140,3.2098,1253.7,1253.5,1.1930985]
[1672922077358,3.2098,1253.7,1253.5,3.6930985]
[1672922077566,2.5,1253.6,1253.5,1.1930985]
[1672922079260,2.5,1253.6,1253.5,2.98274625]
[1672922080936,2.5,1253.6,1253.5,2.97756764]
[1672922081357,2.5,1253.6,1253.5,1.18791989]
[1672922082099,2.5,1253.6,1253.5,2.97756764]
[1672922084935,2.5,1253.6,1253.5,1.78964775]
[1672922085354,3.2098,1253.7,1253.5,1.78964775]
[1672922085676,3.2098,1253.7,1253.5,4.28964775]
[1672922085881,0.002,1253.7,1253.5,4.28964775]
[1672922086096,2.5,1253.6,1253.5,1.78964775]
[1672922089776,2.5,1253.7,1253.5,1.78964775]
[1672922089986,2.5,1253.7,1253.5,4.28964775]
[1672922090197,2.5,1253.7,1253.5,1.79164775]
[1672922090820,2.5,1253.7,1253.5,4.29164775]
[1672922091026,3.6814,1253.9,1253.6,1.78964775]
[1672922091241,7.39644908,1254.0,1253.7,1.78964775]
[1672922091454,3.2078,1254.0,1253.7,1.78964775]
[1672922091669,2.5,1253.9,1253.8,2.0]
[1672922094711,5.7078,1254.0,1253.8,2.0]
[1672922098703,2.5,1254.0,1253.8,2.0]
[1672922105756,5.7078,1254.0,1253.8,2.0]
[1672922106907,5.7078,1254.0,1253.7,7.981]
[1672922107118,5.70435879,1254.0,1253.6,9.77064775]
[1672922107320,3.2078,1253.8,1253.7,2.0]
[1672922107532,3.2078,1253.8,1253.6,9.77064775]
[1672922107745,2.5,1253.7,1253.6,9.77064775]
[1672922109111,2.5,1253.7,1253.6,7.981]
[1672922110267,2.5,1253.7,1253.5,9.88564475]
[1672922110268,2.5,1253.7,1253.5,15.36664475]
[1672922110485,2.5,1253.7,1253.5,12.98044775]
[1672922111217,2.5,1253.7,1253.5,9.77264775]
[1672922111630,2.5,1253.7,1253.5,12.15884475]
[1672922111843,2.5,1253.7,1253.5,9.77264775]
[1672922112474,2.5,1253.7,1253.5,12.15884475]
[1672922113530,2.5,1253.7,1253.5,9.77264775]
[1672922114580,2.5,1253.7,1253.5,12.15884475]
[1672922115842,2.5,1253.7,1253.6,1.78964775]
[1672922116047,2.5,1253.7,1253.6,4.28964775]
[1672922116994,2.5,1253.7,1253.6,1.78964775]
[1672922117204,2.5,1253.7,1253.6,4.28964775]
[1672922117518,2.5,1253.7,1253.6,1.78964775]
[1672922120142,2.5,1253.7,1253.6,1.79164775]
[1672922121411,2.502,1253.7,1253.6,1.79164775]
[1672922123300,0.002,1253.7,1253.6,4.29164775]
[1672922123927,0.002,1253.7,1253.6,6.67784475]
[1672922125610,0.002,1253.7,1253.6,6.30204035]
[1672922127499,0.002,1253.7,1253.6,4.888197]
[1672922127926,0.002,1253.7,1253.6,6.30206262]
[1672922128551,0.002,1253.7,1253.6,4.888197]
[1672922128868,0.002,1253.7,1253.6,6.3020601]
[1672922129290,0.002,1253.7,1253.6,4.888197]
[1672922130031,0.002,1253.7,1253.6,6.30206131]
[1672922138330,0.002,1253.7,1253.6,9.28480757]
[1672922139483,0.002,1253.7,1253.6,6.30206131]
[1672922140009,0.002,1253.7,1253.6,9.28480757]
[1672922142627,0.002,1253.7,1253.6,12.49260757]
[1672922142843,0.002,1253.7,1253.6,9.50986131]
[1672922143053,0.002,1253.7,1253.6,12.49260757]
[1672922143582,0.002,1253.7,1253.6,9.28480757]
[1672922143899,0.002,1253.7,1253.6,6.30206131]
[1672922144427,0.002,1253.7,1253.6,9.28480757]
[1672922148313,0.002,1253.7,1253.6,6.89861057]
[1672922148836,0.002,1253.7,1253.6,9.28558872]
[1672922149043,0.002,1253.7,1253.6,6.89861057]
[1672922149467,0.002,1253.7,1253.6,9.28560462]
[1672922150510,0.002,1253.7,1253.6,9.28567796]
[1672922154307,0.002,1253.7,1253.6,6.89861057]
[1672922158084,0.002,1253.7,1253.6,10.10641057]
[1672922159982,0.002,1253.7,1253.6,6.89861057]
[1672922160182,0.002,1253.7,1253.6,10.10641057]
[1672922165555,0.002,1253.7,1253.6,6.89861057]
[1672922168282,0.002,1253.7,1253.6,6.30396844]
[1672922171753,0.002,1253.7,1253.6,4.89010413]
[1672922171968,0.002,1253.7,1253.6,2.39010413]
[1672922172606,0.002,1253.7,1253.6,4.89010413]
[1672922175233,0.002,1253.7,1253.6,6.30401426]
[1672922177119,0.002,1253.7,1253.6,4.89010413]
[1672922177757,0.002,1253.7,1253.6,4.88788872]
[1672922177959,5.7078,1253.8,1253.6,4.88788872]
[1672922178171,2.5,1253.7,1253.6,2.38788872]
[1672922178382,2.5,1253.7,1253.6,3.80179856]
[1672922185008,2.5,1253.7,1253.6,2.38788872]
[1672922185742,5.7078,1253.8,1253.6,3.80178747]
[1672922185948,5.7078,1253.8,1253.7,1.7903778]
[1672922187635,2.5,1253.8,1253.7,1.7903778]
[1672922187849,5.7078,1253.8,1253.7,1.7903778]
[1672922191935,2.5,1253.8,1253.7,1.7903778]
[1672922199407,5.2078,1253.9,1253.7,1.7903778]
[1672922199622,5.2078,1253.9,1253.8,1.79041236]
[1672922200460,2.0,1253.9,1253.8,1.79041236]
[1672922201098,2.0,1253.9,1253.8,2.98384637]
[1672922202357,5.2078,1253.9,1253.8,2.98384637]
[1672922202776,2.0,1253.9,1253.8,2.98384637]
[1672922202988,5.2078,1253.9,1253.8,2.98384637]
[1672922206137,2.0,1253.9,1253.8,2.98384637]
[1672922206557,5.2078,1253.9,1253.8,2.98384637]
[1672922206875,5.2078,1253.9,1253.8,1.19343401]
[1672922207082,8.7886515,1253.9,1253.8,1.19343401]
[1672922207297,8.7886515,1253.9,1253.7,2.98384637]
[1672922209392,5.5808515,1253.9,1253.7,2.98384637]
[1672922209609,3.2078,1253.8,1253.7,2.98384637]
[1672922212020,5.5808515,1253.9,1253.7,2.98384637]
[1672922212231,3.2078,1253.8,1253.7,2.98384637]
[1672922213494,5.5808515,1253.9,1253.7,2.98384637]
[1672922213812,3.2078,1253.8,1253.7,2.98384637]
[1672922216650,5.5808515,1253.9,1253.7,2.98384637]
[1672922216867,3.2078,1253.8,1253.7,2.98384637]
[1672922218021,5.5808515,1253.9,1253.7,2.98384637]
[1672922218442,3.2078,1253.8,1253.7,1.79041236]
[1672922219806,5.5808515,1253.9,1253.7,1.79041236]
[1672922220010,5.5808515,1253.9,1253.8,1.19348937]
[1672922220225,8.7886515,1253.9,1253.8,1.19348937]
[1672922220436,5.5808515,1253.9,1253.8,1.19348937]
[1672922220653,8.7886515,1253.9,1253.8,1.19348937]
[1672922223493,5.2078,1253.9,1253.8,1.19348937]
[1672922225279,2.0,1253.9,1253.8,1.19348937]
[1672922225593,5.2078,1253.9,1253.8,1.19348937]
[1672922227901,5.2078,1253.9,1253.8,2.98390173]
[1672922229485,2.0,1253.9,1253.8,2.98390173]
[1672922229694,5.2078,1253.9,1253.8,1.19348937]
[1672922231794,8.7886515,1253.9,1253.8,1.19348937]
[1672922232327,5.2078,1253.9,1253.8,1.19348937]
[1672922232742,2.0,1253.9,1253.8,1.19348937]
[1672922232956,5.2078,1253.9,1253.8,1.19348937]
[1672922233588,5.5808515,1253.9,1253.8,1.19348937]
[1672922233896,8.7886515,1253.9,1253.8,1.19348937]
[1672922234530,5.2078,1253.9,1253.8,1.19348937]
[1672922234950,8.7886515,1253.9,1253.8,1.19348937]
[1672922235360,5.5808515,1253.9,1253.8,1.19348937]
[1672922235570,8.7886515,1253.9,1253.8,1.19348937]
[1672922236212,5.5808515,1253.9,1253.8,1.19348937]
[1672922236417,8.7886515,1253.9,1253.8,1.19348937]
[1672922236634,5.5808515,1253.9,1253.8,1.19348937]
[1672922236831,8.7886515,1253.9,1253.8,1.19348937]
[1672922237998,5.2078,1253.9,1253.8,1.19348937]
[1672922239472,2.0,1253.9,1253.8,1.19348937]
[1672922239687,5.2078,1253.9,1253.8,1.19348937]
[1672922239995,8.7886515,1253.9,1253.8,1.19348937]
[1672922240833,5.2078,1253.9,1253.8,1.19348937]
[1672922241149,5.2078,1253.9,1253.8,2.98390173]
[1672922241783,2.0,1253.9,1253.8,2.98390173]
[1672922241992,5.2078,1253.9,1253.8,2.98390173]
[1672922242309,5.2078,1253.9,1253.8,1.19348937]
[1672922242832,5.2078,1253.9,1253.8,2.98390173]
[1672922245467,2.0,1253.9,1253.8,2.98390173]
[1672922245675,5.2078,1253.9,1253.8,2.98390173]
[1672922247458,8.7886515,1253.9,1253.8,2.98390173]
[1672922247776,5.2078,1253.9,1253.8,2.98390173]
[1672922248192,2.0,1253.9,1253.8,2.98390173]
[1672922249131,5.2078,1253.9,1253.8,2.98390173]
[1672922249556,8.7886515,1253.9,1253.8,2.98390173]
[1672922250299,5.5808515,1253.9,1253.8,2.98390173]
[1672922250722,8.7886515,1253.9,1253.8,2.98390173]
[1672922251455,5.5808515,1253.9,1253.8,2.98390173]
[1672922252084,8.7886515,1253.9,1253.8,2.98390173]
[1672922253141,5.5808515,1253.9,1253.8,2.98390173]
[1672922253354,8.7886515,1253.9,1253.8,2.98390173]
[1672922254302,5.5808515,1253.9,1253.8,2.98390173]
[1672922254511,8.7886515,1253.9,1253.8,2.98390173]
[1672922254722,5.5808515,1253.9,1253.8,2.98390173]
[1672922254931,8.7886515,1253.9,1253.8,2.98390173]
[1672922255978,5.5808515,1253.9,1253.8,2.98390173]
[1672922256189,8.7886515,1253.9,1253.8,2.98390173]
[1672922259657,8.7886515,1253.9,1253.8,1.19348937]
[1672922259869,12.97730058,1253.9,1253.8,1.19348937]
[1672922261335,9.76950058,1253.9,1253.8,1.19348937]
[1672922261550,12.97730058,1253.9,1253.8,1.19348937]
[1672922261755,8.7886515,1253.9,1253.8,1.19348937]
[1672922262293,12.97730058,1253.9,1253.8,1.19348937]
[1672922263554,9.39644908,1253.9,1253.7,2.98390173]
[1672922263764,3.58961038,1253.8,1253.7,2.98390173]
[1672922264179,17.77128302,1253.9,1253.7,1.19348937]
[1672922264389,3.58961038,1253.8,1253.6,2.98390173]
[1672922264598,3.58961038,1253.8,1253.7,1.19348937]
[1672922264808,2.5,1253.7,1253.6,2.98390173]
[1672922265021,2.5,1253.7,1253.6,1.79041236]
[1672922265434,2.5,1253.7,1253.6,2.98666179]
[1672922265659,2.5,1253.7,1253.6,2.98614492]
[1672922268924,5.7078,1253.7,1253.6,2.98614492]
[1672922271236,2.5,1253.7,1253.6,2.98614492]
[1672922271445,5.7078,1253.7,1253.6,2.98614492]
[1672922272501,5.7078,1253.7,1253.6,1.19573256]
[1672922276179,2.5,1253.7,1253.6,1.19573256]
[1672922276390,5.7078,1253.7,1253.6,1.19573256]
[1672922277970,5.7078,1253.7,1253.5,2.98614492]
[1672922278912,5.7078,1253.7,1253.6,1.19573256]
[1672922279226,9.29741038,1253.7,1253.5,1.18782327]
[1672922279648,5.7078,1253.7,1253.5,1.18782327]
[1672922280483,5.7078,1253.7,1253.5,2.97823563]
[1672922280906,5.7078,1253.7,1253.5,1.18782327]
[1672922283644,2.5,1253.7,1253.5,1.18782327]
[1672922283959,3.2078,1253.6,1253.5,1.18782327]
[1672922284696,3.2078,1253.6,1253.5,2.97823563]
[1672922285953,3.2078,1253.6,1253.5,1.18782327]
[1672922288166,3.2078,1253.6,1253.4,1.79041236]
[1672922288479,3.2078,1253.6,1253.3,4.17735989]
[1672922288480,2.5,1253.5,1253.3,4.17735989]
[1672922288896,2.5,1253.5,1253.3,4.29041236]
[1672922289104,2.5,1253.5,1253.3,1.79041236]
[1672922289315,2.5,1253.5,1253.3,4.17735989]
[1672922289532,2.5,1253.5,1253.3,1.79041236]
[1672922290155,5.7078,1253.5,1253.3,1.79041236]
[1672922292896,5.7078,1253.5,1253.3,4.17735989]
[1672922293319,5.7078,1253.5,1253.3,6.67735989]
[1672922293530,5.7078,1253.5,1253.3,1.79041236]
[1672922293841,5.7078,1253.5,1253.3,4.29041236]
[1672922294047,5.7078,1253.5,1253.3,6.67735989]
[1672922294479,5.7078,1253.5,1253.3,4.17735989]
[1672922296569,2.5,1253.5,1253.3,4.17735989]
[1672922296779,5.7078,1253.5,1253.3,4.17735989]
[1672922297201,2.5,1253.5,1253.3,4.17735989]
[1672922297521,5.7078,1253.5,1253.3,4.17735989]
[1672922298361,5.7078,1253.5,1253.4,1.79041236]
[1672922298673,5.7078,1253.5,1253.4,4.29041236]
[1672922299202,5.7078,1253.5,1253.4,1.79041236]
[1672922299936,5.7078,1253.5,1253.4,4.29041236]
[1672922300256,5.7078,1253.5,1253.4,1.79041236]
[1672922300671,5.7078,1253.5,1253.3,3.79041236]
[1672922301833,5.7078,1253.5,1253.3,6.17735989]
[1672922302041,5.7078,1253.5,1253.3,4.17735989]
[1672922304991,2.5,1253.5,1253.3,4.17735989]
[1672922305198,5.7078,1253.5,1253.3,4.17735989]
[1672922305407,5.7078,1253.5,1253.4,1.79041236]
[1672922305615,5.7078,1253.5,1253.4,4.29041236]
[1672922305820,5.7078,1253.5,1253.4,1.79041236]
[1672922307408,5.7078,1253.5,1253.3,6.67735989]
[1672922307819,5.7078,1253.5,1253.4,1.79041236]
[1672922308140,5.7078,1253.5,1253.4,3.79041236]
[1672922308348,5.7078,1253.5,1253.4,1.79041236]
[1672922311512,2.5,1253.5,1253.4,1.79041236]
[1672922311721,5.7078,1253.5,1253.4,1.79041236]
[1672922312352,2.5,1253.5,1253.4,1.79041236]
[1672922312665,5.7078,1253.5,1253.4,1.79041236]
[1672922313716,2.5,1253.5,1253.4,1.79041236]
[1672922313916,5.7078,1253.5,1253.4,1.79041236]